bitfinex/quotes_ETHUSD_20250725
["timestamp","ask_amount","ask_price","bid_price","bid_amount"]
[1753446865315,2.69746945,3707.2,3706.9,0.1352]
[1753446865316,0.4632,3707.1,3706.9,0.1352]
[1753446865612,0.4504,3707.2,3706.7,4.632]
[1753446865613,0.002,3707.2,3706.7,4.632]
[1753446865909,0.002,3707.2,3707.0,0.1352]
[1753446866088,0.002,3707.2,3707.1,0.8173]
[1753446866322,0.002,3707.2,3707.1,1.3061]
[1753446866504,0.002,3707.2,3707.1,0.8173]
[1753446866708,0.002,3707.2,3707.1,4.45172636]
[1753446867510,0.002,3707.2,3707.1,4.47870162]
[1753446867706,0.002,3707.2,3707.1,5.02870162]
[1753446868038,0.95093243,3708.5,3708.4,3.49688073]
[1753446868344,0.95093243,3708.5,3708.4,0.1352]
[1753446868640,0.95093243,3708.5,3708.4,7.45678073]
[1753446869147,0.95093243,3708.5,3708.4,4.7602]
[1753446870135,0.95093243,3708.5,3708.4,4.7592]
[1753446870938,0.95093243,3708.5,3708.4,7.45578073]
[1753446871136,0.95093243,3708.5,3708.4,8.39268073]
[1753446871342,0.95093243,3708.5,3708.4,5.6961]
[1753446871512,0.95093243,3708.5,3708.4,7.94458073]
[1753446871707,0.95093243,3708.5,3708.4,9.70928073]
[1753446874114,0.95093243,3708.5,3708.4,9.68528073]
[1753446874831,0.002,3708.6,3708.5,4.07180802]
[1753446875131,0.002,3708.7,3708.6,4.07173531]
[1753446875331,0.002,3708.7,3708.6,9.11783531]
[1753446875508,0.002,3708.7,3708.6,5.14383531]
[1753446875845,0.002,3709.2,3709.1,4.07137182]
[1753446876023,0.002,3709.2,3709.1,8.66637182]
[1753446876214,0.002,3709.2,3709.1,8.80157182]
[1753446876738,0.002,3709.2,3709.1,9.71817182]
[1753446878517,0.002,3710.2,3710.1,2.69534513]
[1753446878727,0.002,3710.2,3710.1,8.10604513]
[1753446878942,0.002,3710.2,3710.1,8.24044513]
[1753446881221,0.002,3710.2,3710.1,8.79044513]
[1753446881652,0.002,3710.2,3710.1,9.25144513]
[1753446882336,0.002,3710.2,3710.1,9.70704513]
[1753446882832,0.002,3710.2,3710.1,8.77244513]
[1753446883036,0.002,3710.2,3710.1,5.5271]
[1753446883220,0.002,3710.2,3710.1,5.5291]
[1753446883221,0.4759,3710.2,3710.1,5.5291]
[1753446883419,0.4759,3710.2,3710.1,8.22444513]
[1753446883646,0.002,3710.2,3710.1,8.22444513]
[1753446884926,0.002,3710.2,3710.1,8.77444513]
[1753446885918,3.17117249,3710.2,3710.1,0.1344]
[1753446886126,0.9049,3710.2,3710.1,4.553]
[1753446887047,0.4759,3710.2,3710.1,4.553]
[1753446887236,0.002,3710.2,3710.1,2.69534513]
[1753446887436,0.9049,3710.2,3709.2,0.8261]
[1753446887622,0.9049,3710.2,3709.3,4.55]
[1753446887823,0.9049,3710.2,3709.5,0.55]
[1753446888022,0.9049,3710.2,3710.1,2.69534513]
[1753446888023,0.002,3710.2,3710.1,2.69534513]
[1753446888242,0.002,3710.2,3710.1,7.24434513]
[1753446888632,0.002,3710.2,3710.1,8.58424513]
[1753446889037,0.002,3710.2,3710.1,7.79434513]
[1753446889326,0.4759,3710.2,3710.1,7.24234513]
[1753446889823,0.4759,3710.2,3710.1,7.79234513]
[1753446889824,0.002,3710.2,3710.1,7.79234513]
[1753446890025,0.002,3710.2,3710.1,8.70894513]
[1753446891250,1e-08,3710.2,3710.1,9.50774513]
[1753446894402,1e-08,3710.2,3710.1,8.59114513]
[1753446894554,1e-08,3710.2,3710.1,8.01914513]
[1753446895000,1e-08,3710.2,3710.1,8.93574513]
[1753446895164,1e-08,3710.2,3710.1,9.48574513]
[1753446896160,1e-08,3710.2,3710.1,8.70154513]
[1753446899357,1e-08,3710.2,3710.1,9.16254513]
[1753446900178,1e-08,3710.2,3710.1,9.61814513]
[1753446900377,1e-08,3710.2,3710.1,8.70154513]
[1753446901408,0.47390001,3710.2,3710.1,2.82974513]
[1753446901558,1e-08,3710.2,3710.1,2.82974513]
[1753446901757,1e-08,3710.2,3710.1,7.90869858]
[1753446902059,0.47390001,3710.2,3710.1,7.88174513]
[1753446902264,0.90290001,3710.2,3710.1,7.33174513]
[1753446902962,1e-08,3710.2,3710.1,7.88174513]
[1753446904191,1e-08,3710.2,3710.1,8.34274513]
[1753446904695,1e-08,3710.2,3710.1,9.62984513]
[1753446905277,1e-08,3710.2,3710.1,12.62984513]
[1753446907304,0.4739,3711.6,3710.6,7.07648194]
[1753446907489,0.002,3711.7,3711.6,3.24425584]
[1753446907695,0.002,3711.7,3711.6,7.75419839]
[1753446907896,0.002,3711.7,3711.6,7.72725584]
[1753446908394,0.7742,3712.4,3711.6,7.72725584]
[1753446908395,1e-08,3711.8,3711.7,3.24418325]
[1753446908702,1e-08,3711.8,3711.7,3.27112508]
[1753446908910,1e-08,3711.8,3711.7,3.65734231]
[1753446909271,1e-08,3711.8,3711.7,4.11754231]
[1753446909472,1e-08,3711.8,3711.7,4.56224231]
[1753446909801,1e-08,3711.8,3711.7,4.31042508]
[1753446909967,1e-08,3711.8,3711.7,3.86572508]
[1753446912098,1e-08,3711.8,3711.7,4.31042508]
[1753446912521,1e-08,3711.8,3711.7,4.28348325]
[1753446912685,1e-08,3711.8,3711.7,4.31042508]
[1753446912888,1e-08,3711.8,3711.7,8.12232508]
[1753446913278,1e-08,3711.8,3711.7,8.09538325]
[1753446915906,1e-08,3711.8,3711.7,12.55238325]
[1753446916416,1e-08,3711.8,3711.7,8.09538325]
[1753446916596,1e-08,3711.8,3711.7,12.55038325]
[1753446916920,1e-08,3711.8,3711.7,8.09538325]
[1753446917091,1e-08,3711.8,3711.7,12.54938325]
[1753446918618,1e-08,3711.8,3711.7,12.54838325]
[1753446920786,0.451,3713.1,3713.0,3.24323996]
[1753446920986,0.451,3713.1,3713.0,7.68423996]
[1753446921221,0.451,3713.1,3713.0,7.81863996]
[1753446921397,0.9407,3713.1,3713.0,7.81863996]
[1753446921596,0.4917,3713.1,3713.0,7.81863996]
[1753446921901,0.002,3713.1,3713.0,7.81863996]
[1753446922211,0.4917,3713.1,3713.0,7.81863996]
[1753446922388,0.9407,3713.1,3713.0,7.81863996]
[1753446922953,1.7072,3713.1,3713.0,3.37763996]
[1753446923104,1.7072,3713.1,3713.0,7.81263996]
[1753446923442,1.7072,3713.1,3713.0,4.5684]
[1753446924240,1.7072,3713.1,3713.0,4.5674]
[1753446924820,1.7072,3713.1,3713.0,7.26063996]
[1753446925003,0.002,3713.1,3713.0,7.81063996]
[1753446925330,0.4917,3713.1,3713.0,7.81063996]
[1753446926036,0.9407,3713.1,3713.0,7.81063996]
[1753446928239,0.002,3713.1,3713.0,7.81063996]
[1753446930942,0.002,3713.1,3713.0,9.03913996]
[1753446931242,1e-08,3713.1,3713.0,9.48383996]
[1753446931441,0.2495,3713.5,3713.4,3.24294985]
[1753446931622,0.2495,3713.5,3713.4,7.68087934]
[1753446931818,0.2495,3713.5,3713.4,7.78834985]
[1753446932020,0.4917,3714.0,3713.9,2.6925873]
[1753446932021,0.002,3714.0,3713.9,2.6925873]
[1753446932239,0.002,3714.0,3713.9,7.81391317]
[1753446932553,0.002,3714.0,3713.9,7.7869873]
[1753446934441,0.002,3714.1,3714.0,3.2425148]
[1753446934643,1e-08,3714.1,3714.0,3.72963994]
[1753446935014,1e-08,3714.1,3714.0,4.1474148]
[1753446935212,0.93870001,3714.1,3714.0,2.6925148]
[1753446935435,0.93870001,3714.1,3714.0,4.407]
[1753446936311,0.93870001,3714.1,3714.0,4.404]
[1753446936511,0.93870001,3714.1,3713.7,2.69272548]
[1753446936714,4.41692825,3714.0,3712.7,6.466]
[1753446936945,0.9512,3713.9,3712.8,4.402]
[1753446937132,0.9512,3713.8,3713.3,2.6929799]
[1753446937337,0.9512,3713.7,3713.4,4.409]
[1753446937533,0.9512,3713.6,3713.5,4.409]
[1753446937714,1.7025,3713.6,3713.5,4.407]
[1753446938847,1.7025,3713.6,3713.1,2.69313793]
[1753446939155,0.9512,3713.5,3713.2,4.41]
[1753446939334,0.4864,3713.4,3713.2,4.41]
[1753446939650,0.4648,3713.3,3713.2,7.1030929]
[1753446939944,0.9512,3713.3,3713.2,4.41]
[1753446940125,0.9512,3713.3,3713.2,7.1030949]
[1753446940647,0.4864,3713.3,3713.2,7.1030949]
[1753446940957,0.4648,3713.8,3713.4,2.69289715]
[1753446941137,0.9512,3713.7,3713.5,4.404]
[1753446941314,0.9512,3713.6,3713.3,3.24296905]
[1753446941611,0.4864,3713.5,3713.4,7.64894657]
[1753446943061,0.4864,3713.8,3713.6,2.69274605]
[1753446943229,0.8274,3713.9,3713.7,4.401]
[1753446943431,0.9512,3713.8,3713.7,4.401]
[1753446943625,0.9512,3713.8,3713.7,7.09373231]
[1753446943841,0.9512,3713.8,3713.7,7.09173231]
[1753446944277,0.4864,3713.8,3713.7,7.09173231]
[1753446944484,0.9512,3713.8,3713.4,0.55]
[1753446944764,0.7549,3713.6,3713.5,3.904]
[1753446944929,4.39890482,3713.6,3713.5,4.404]
[1753446945137,1.7061,3713.6,3713.5,4.404]
[1753446945759,1.7061,3713.6,3713.5,4.401]
[1753446945927,4.39897163,3713.6,3713.5,4.401]
[1753446946130,4.39897163,3713.6,3713.2,0.1344]
[1753446946329,4.39897163,3713.6,3712.6,2.69350681]
[1753446946330,0.7973,3713.3,3712.6,2.69350681]
[1753446946526,0.9512,3713.2,3713.0,0.1344]
[1753446946742,0.9512,3713.2,3713.1,4.398]
[1753446946967,3.49032602,3713.3,3713.1,4.398]
[1753446947144,3.49033196,3713.3,3712.3,2.69368897]
[1753446947341,2.69324789,3713.0,3712.6,0.1344]
[1753446947542,0.761,3712.8,3712.7,4.396]
[1753446947753,1.7122,3712.8,3712.7,4.396]
[1753446947954,0.761,3712.8,3712.7,4.396]
[1753446948261,0.761,3712.8,3712.7,7.08945759]
[1753446948262,1.2258,3712.8,3712.7,7.08945759]
[1753446948566,0.761,3712.8,3712.7,7.08945759]
[1753446949064,0.7961,3713.2,3713.1,2.69316743]
[1753446949366,1.2831,3713.5,3713.2,2.69308895]
[1753446949665,0.8183,3713.5,3713.4,2.82734985]
[1753446949838,1.2833,3713.8,3713.4,4.5274]
[1753446950034,1.2833,3713.8,3713.7,2.69273231]
[1753446950255,0.79850001,3714.1,3713.7,4.5254]
[1753446950531,0.79850001,3714.1,3714.0,2.6925148]
[1753446950532,1.26330001,3714.1,3714.0,2.6925148]
[1753446950754,1.26330001,3714.1,3714.0,7.0835148]
[1753446951067,1.26330001,3714.1,3714.0,8.0956148]
[1753446951068,1e-08,3714.1,3714.0,8.0956148]
[1753446951932,1e-08,3714.1,3714.0,8.5590148]
[1753446952136,1e-08,3714.1,3714.0,9.3106148]
[1753446953472,1e-08,3714.1,3714.0,12.3106148]
[1753446953673,1e-08,3714.6,3714.5,3.24215237]
[1753446953885,1e-08,3714.6,3714.5,8.42065237]
[1753446954171,1e-08,3714.6,3714.5,9.48055237]
[1753446954472,0.002,3714.8,3714.7,3.24200742]
[1753446954473,1e-08,3714.8,3714.7,3.24200742]
[1753446954675,1e-08,3714.8,3714.7,7.62600742]
[1753446954979,1e-08,3714.8,3714.7,8.22050742]
[1753446955348,1e-08,3714.8,3714.7,3.83850742]
[1753446955549,1e-08,3714.8,3714.7,3.37640742]
[1753446955750,1e-08,3714.8,3714.7,7.20640742]
[1753446956140,1e-08,3714.8,3714.7,7.66850742]
[1753446956352,1e-08,3714.8,3714.7,8.68190742]
[1753446956557,1e-08,3714.8,3714.7,8.21850742]
[1753446956754,1e-08,3714.8,3714.7,8.68190742]
[1753446957042,1e-08,3714.8,3714.7,9.49160742]
[1753446957270,1e-08,3714.8,3714.7,9.02820742]
[1753446957772,1e-08,3714.8,3714.7,12.49160742]
[1753446957972,1e-08,3714.8,3714.7,15.32060742]
[1753446958173,1e-08,3714.8,3714.7,12.49160742]
[1753446958375,1e-08,3715.1,3715.0,3.24179004]
[1753446958670,1e-08,3715.1,3715.0,7.61779004]
[1753446958972,1e-08,3715.1,3715.0,8.67769004]
[1753446959271,1e-08,3715.1,3715.0,12.43109004]
[1753446960891,0.8163,3717.0,3715.0,12.43109004]
[1753446960892,0.8163,3717.0,3716.9,3.24041405]
[1753446961063,0.1344,3717.4,3717.0,0.55]
[1753446961064,0.4648,3717.3,3717.0,0.55]
[1753446961266,0.4648,3717.3,3717.2,2.69019692]
[1753446961462,0.4648,3717.3,3717.2,2.82459692]
[1753446961664,0.9512,3717.3,3717.2,4.5074]
[1753446961881,0.9512,3717.3,3717.2,7.19759692]
[1753446962082,0.9512,3717.3,3717.2,4.5074]
[1753446962395,0.4648,3717.3,3717.2,7.19757392]
[1753446962598,1.262,3717.9,3717.6,2.68985101]
[1753446962893,0.7972,3717.9,3717.8,2.68976276]
[1753446963078,0.7972,3717.9,3717.8,0.1344]
[1753446963485,0.4864,3718.2,3717.8,0.1344]
[1753446963692,0.4648,3718.1,3717.9,7.06163432]
[1753446963887,0.8028,3718.4,3718.1,0.1344]
[1753446964088,0.8028,3718.4,3718.2,4.372]
[1753446964089,3.8028,3718.4,3718.2,4.372]
[1753446964287,3.8028,3718.4,3718.2,4.5064]
[1753446964498,0.9512,3718.3,3718.2,4.5064]
[1753446965394,4.7408,3718.3,3718.2,4.372]
[1753446966498,4.7408,3718.3,3718.2,4.5064]
[1753446966499,1.2544,3718.3,3718.2,4.5064]
[1753446966684,0.2495,3718.5,3718.4,2.68932874]
[1753446966885,0.2495,3718.5,3718.4,3.26622202]
[1753446967183,0.2495,3718.5,3718.4,3.87862202]
[1753446967499,0.2495,3718.5,3718.4,8.22272874]
[1753446968970,0.2495,3718.5,3718.4,7.74472874]
[1753446969567,0.2495,3718.5,3718.4,8.22272874]
[1753446969904,0.002,3719.2,3719.1,3.23882256]
[1753446970109,0.002,3719.2,3719.1,7.74322256]
[1753446973106,0.002,3719.2,3719.1,8.22122256]
[1753446973801,0.002,3719.2,3719.1,7.74322256]
[1753446974469,0.002,3719.2,3719.1,5.0544]
[1753446974672,0.9308,3719.2,3719.1,0.1344]
[1753446974900,1.7067,3719.2,3719.1,0.1344]
[1753446975101,1.7067,3719.2,3718.3,2.68940107]
[1753446975314,3.61762256,3719.1,3719.0,0.1344]
[1753446975493,3.61762256,3719.1,3719.0,4.368]
[1753446975803,3.61762256,3719.1,3718.4,0.1344]
[1753446975804,2.68931663,3718.5,3718.4,0.1344]
[1753446976100,2.68931663,3718.5,3718.4,4.368]
[1753446976270,0.9288,3718.5,3718.4,4.368]
[1753446976470,3.61805642,3718.5,3718.4,4.368]
[1753446976675,3.61805642,3718.5,3718.1,0.1344]
[1753446976884,0.9288,3718.4,3717.8,6.461]
[1753446977074,2.68960112,3718.1,3717.9,4.368]
[1753446977274,0.4561,3718.0,3717.8,6.461]
[1753446977474,3.14578614,3718.0,3717.9,4.368]
[1753446977676,2.68968614,3718.0,3717.9,4.368]
[1753446978309,3.47269041,3717.9,3717.8,6.461]
[1753446978607,4.40149041,3717.9,3717.8,10.829]
[1753446982000,0.7634,3718.4,3717.8,10.829]
[1753446982199,0.7634,3718.4,3717.8,13.65311698]
[1753446982400,0.7634,3718.4,3718.0,0.1344]
[1753446982612,1.2195,3718.4,3718.1,4.368]
[1753446983119,0.7634,3718.4,3718.1,4.368]
[1753446983280,0.7634,3718.4,3718.2,0.1344]
[1753446983483,0.7634,3718.4,3718.3,4.368]
[1753446983710,0.8141,3718.8,3718.3,4.368]
[1753446984081,1.2702,3718.8,3718.4,0.1344]
[1753446984282,0.9288,3718.7,3718.5,4.367]
[1753446984494,0.8141,3718.8,3717.8,6.461]
[1753446984495,0.9288,3718.6,3717.8,6.461]
[1753446984682,2.68938035,3718.4,3718.2,0.1344]
[1753446984888,2.68938035,3718.4,3718.3,4.367]
[1753446985214,2.68938035,3718.4,3717.8,6.461]
[1753446985215,2.68969041,3717.9,3717.8,6.461]
[1753446985415,2.68969041,3717.9,3717.8,10.828]
[1753446985585,3.61849041,3717.9,3717.8,6.461]
[1753446985785,3.61849041,3717.9,3716.6,0.7605]
[1753446985786,0.8176,3717.8,3716.6,2.6906177]
[1753446986116,2.68943855,3718.3,3716.3,6.458]
[1753446986117,3.0,3717.2,3716.3,6.458]
[1753446986324,9.20900243,3717.5,3716.4,4.367]
[1753446986325,2.69060872,3716.7,3716.4,4.367]
[1753446986505,0.4561,3717.0,3716.4,4.367]
[1753446986703,0.4561,3717.0,3716.5,2.69070361]
[1753446986704,3.0,3717.0,3716.5,2.69070361]
[1753446986892,3.756,3717.1,3716.5,2.69070361]
[1753446987094,0.756,3717.1,3716.7,2.69051214]
[1753446987298,3.14644566,3717.0,3716.8,4.367]
[1753446987498,1.2287,3717.1,3716.8,4.367]
[1753446987499,0.756,3717.1,3716.8,4.367]
[1753446987820,5.68992031,3717.6,3717.0,2.69033463]
[1753446988016,2.69005218,3717.4,3717.1,4.367]
[1753446988202,3.0,3717.2,3716.3,6.458]
[1753446988404,2.69034167,3717.0,3716.4,4.367]
[1753446989114,0.4561,3717.1,3716.3,6.458]
[1753446989315,2.69046065,3716.9,3716.3,6.458]
[1753446989619,0.4727,3717.0,3716.4,7.05777507]
[1753446989819,3.16307718,3717.0,3716.4,4.367]
[1753446990022,0.4727,3717.0,3716.3,6.458]
[1753446990323,0.7859,3716.8,3716.4,4.367]
[1753446990699,0.7859,3716.8,3716.5,3.16868706]
[1753446990900,0.7859,3717.1,3716.6,2.69062295]
[1753446991215,0.7859,3717.1,3716.7,7.05753237]
[1753446991433,0.7859,3717.1,3716.7,7.05754856]
[1753446992018,3.0,3717.0,3716.7,4.367]
[1753446992223,0.7859,3717.1,3716.7,4.367]
[1753446992422,3.0,3717.0,3716.7,4.367]
[1753446992628,0.7859,3717.1,3716.7,4.367]
[1753446993723,3.0,3717.4,3716.8,2.690427]
[1753446994302,0.4727,3717.6,3716.7,4.845]
[1753446994303,3.0,3717.6,3716.7,4.845]
[1753446994616,5.68985049,3717.7,3717.0,2.69031391]
[1753446994821,5.68985049,3717.7,3717.1,4.367]
[1753446995025,1.7174,3717.9,3717.1,4.367]
[1753446995237,2.68980634,3717.8,3717.1,4.367]
[1753446995390,1.2447,3717.9,3717.2,2.69019692]
[1753446995901,0.7886,3717.9,3717.5,2.68997333]
[1753446996218,0.7886,3717.9,3717.6,7.05689493]
[1753446996437,0.7886,3717.9,3717.6,4.367]
[1753446996624,3.0,3717.8,3717.6,4.367]
[1753446996791,1.2521,3717.9,3717.6,4.367]
[1753446996987,1.2521,3717.9,3717.4,2.82443912]
[1753446997220,0.7886,3717.9,3717.5,4.366]
[1753446997540,3.0,3717.8,3717.4,0.1344]
[1753446997915,3.0,3717.8,3717.5,4.366]
[1753446998245,3.0,3717.8,3717.4,0.1344]
[1753446998428,3.0,3717.8,3717.6,4.366]
[1753446998750,4.2521,3717.9,3717.6,4.366]
[1753446999044,3.0,3717.7,3717.6,4.366]
[1753446999352,3.0,3717.2,3716.5,0.4704]
[1753446999555,3.51056929,3717.1,3716.9,4.366]
[1753446999759,0.8203,3717.1,3716.9,4.366]
[1753447000313,0.7753,3717.5,3716.9,4.366]
[1753447000612,5.69006297,3717.4,3716.9,4.9708]
[1753447000858,3.0,3717.4,3717.0,4.366]
[1753447001145,0.9097,3717.5,3717.1,7.05526299]
[1753447001352,3.0,3717.8,3717.1,7.05526056]
[1753447001515,2.82416916,3717.8,3717.3,0.1344]
[1753447001721,0.4635,3717.7,3717.4,4.365]
[1753447002215,2.68990746,3717.6,3717.4,4.365]
[1753447002755,2.6903152,3717.1,3716.9,0.1344]
[1753447002922,3.5030152,3717.1,3717.0,4.365]
[1753447003118,1.0796,3717.5,3717.0,4.365]
[1753447003119,0.1344,3717.2,3717.0,7.05532227]
[1753447003438,0.1344,3717.5,3717.1,0.4704]
[1753447003616,0.8127,3717.7,3717.2,3.16054998]
[1753447003814,0.9471,3717.7,3717.3,4.365]
[1753447004017,0.9471,3717.7,3717.3,7.52552361]
[1753447004245,3.0,3718.4,3717.5,2.68993346]
[1753447004246,0.7824,3718.1,3717.5,2.68993346]
[1753447004450,0.1344,3718.0,3717.6,4.365]
[1753447004814,3.0,3717.8,3717.6,4.365]
[1753447005018,3.0,3717.9,3717.6,4.365]
[1753447005418,3.15331958,3717.8,3717.6,4.365]
[1753447005623,0.4635,3717.8,3717.6,4.365]
[1753447005824,0.1344,3718.0,3717.4,0.1344]
[1753447006025,3.17148265,3717.8,3717.5,4.364]
[1753447006226,3.28768265,3717.8,3717.5,4.364]
[1753447006444,0.5979,3717.8,3717.5,4.364]
[1753447006645,3.0,3718.0,3717.6,0.4704]
[1753447006826,0.1344,3718.0,3717.6,0.4704]
[1753447007039,2.82406447,3718.0,3717.5,4.4984]
[1753447007242,3.0,3717.9,3717.5,4.4984]
[1753447007458,3.1344,3718.0,3717.6,0.4704]
[1753447007659,3.1344,3718.0,3717.5,4.4984]
[1753447007660,0.7801,3718.3,3717.8,2.6897024]
[1753447007866,0.1344,3718.2,3717.9,4.364]
[1753447008048,0.1344,3718.2,3717.9,7.05364324]
[1753447008256,3.49281029,3718.6,3718.0,3.16001438]
[1753447008564,0.1344,3718.4,3718.0,0.4704]
[1753447008771,0.1344,3718.4,3718.1,0.4704]
[1753447008928,0.1344,3718.4,3718.2,4.8344]
[1753447009125,0.8036,3718.6,3718.2,4.364]
[1753447009330,0.8036,3718.6,3718.2,4.8344]
[1753447009555,3.0,3718.8,3718.2,4.364]
[1753447009556,2.68904407,3718.8,3718.2,4.364]
[1753447009745,0.1344,3718.7,3718.3,0.4704]
[1753447010460,3.0,3718.6,3718.3,0.4704]
[1753447010632,0.1344,3718.7,3718.3,0.4704]
[1753447010831,3.0,3718.6,3718.3,0.4704]
[1753447011029,0.9452,3718.5,3717.4,0.7509]
[1753447011230,3.0,3718.9,3717.5,4.4974]
[1753447011231,2.68978561,3717.8,3717.5,4.4974]
[1753447011474,3.15332492,3717.8,3717.4,0.1344]
[1753447011660,0.4635,3717.8,3717.6,4.363]
[1753447011856,3.30565417,3718.1,3716.5,1.2768]
[1753447011857,0.7836,3717.6,3716.5,1.2768]
[1753447012035,2.69016801,3717.3,3716.9,4.363]
[1753447012237,2.69009929,3717.4,3716.9,4.363]
[1753447012533,3.47353035,3717.6,3716.9,4.363]
[1753447012534,2.69014447,3717.3,3716.9,4.363]
[1753447012864,0.7836,3717.6,3716.9,4.363]
[1753447013040,3.47351017,3717.6,3716.9,4.8334]
[1753447013240,2.69008999,3717.4,3716.9,4.8334]
[1753447013453,2.69008107,3717.4,3716.9,4.8334]
[1753447014384,3.47351847,3717.6,3716.9,4.8334]
[1753447014385,2.69014356,3717.3,3716.9,4.8334]
[1753447014557,0.7836,3717.6,3716.9,4.8334]
[1753447014733,2.68995262,3717.6,3717.0,2.6903302]
[1753447014939,0.4635,3717.7,3716.9,4.8334]
[1753447014940,3.4635,3717.7,3716.9,4.8334]
[1753447015170,0.4635,3717.7,3716.9,4.8334]
[1753447015369,2.6901685,3717.3,3716.9,4.8334]
[1753447015668,3.15335145,3717.7,3717.0,3.16068118]
[1753447016040,0.7578,3717.9,3716.9,4.8304]
[1753447016269,3.0,3717.7,3717.1,2.69022595]
[1753447016696,3.0,3717.7,3716.9,7.5208041]
[1753447016697,6.44751823,3717.9,3717.2,3.16053158]
[1753447016871,3.7578,3717.9,3717.3,7.05207773]
[1753447017066,2.68951446,3718.2,3717.5,2.6899603]
[1753447017292,3.0,3718.1,3717.5,3.1603603]
[1753447017795,3.0,3718.1,3717.6,2.68989536]
[1753447017990,2.68961807,3718.0,3717.7,4.361]
[1753447018181,3.15311807,3718.0,3717.7,4.361]
[1753447018377,0.4635,3718.0,3717.7,4.361]
[1753447018894,5.68957285,3718.1,3717.7,4.361]
[1753447019196,2.68970926,3717.9,3717.7,4.361]
[1753447019400,2.68959887,3718.1,3717.7,4.361]
[1753447019595,2.6894816,3718.2,3717.7,4.361]
[1753447019799,3.0,3718.2,3717.7,4.8314]
[1753447020094,3.46065176,3718.4,3717.8,3.16011866]
[1753447020259,3.46065176,3718.4,3717.7,4.361]
[1753447020260,0.94719286,3718.5,3718.0,2.6896121]
[1753447020466,0.94719286,3718.5,3718.1,4.8304]
[1753447020779,0.94719286,3718.5,3718.2,1.2435]
[1753447020984,3.94719286,3718.5,3718.2,1.2435]
[1753447021190,3.94719286,3718.5,3718.2,0.4704]
[1753447021372,3.94719286,3718.5,3718.1,4.36]
[1753447021560,2.68940107,3718.3,3718.2,4.36]
[1753447021756,2.68940107,3718.3,3717.0,1.2678]
[1753447021757,0.9452,3718.3,3717.0,1.2678]
[1753447022001,0.1344,3717.9,3717.3,0.1344]
[1753447022207,0.9452,3717.8,3717.0,0.4704]
[1753447022492,0.1344,3717.4,3717.1,4.36]
[1753447022695,0.7868,3718.2,3717.2,0.4704]
[1753447022897,1.41069286,3718.5,3717.9,0.1344]
[1753447022898,0.1344,3718.4,3717.9,0.1344]
[1753447023192,2.8237782,3718.4,3718.0,4.36]
[1753447023394,3.2872782,3718.4,3718.0,4.36]
[1753447023897,3.5979,3718.4,3717.9,0.1344]
[1753447024063,2.68960807,3718.1,3718.0,4.36]
[1753447024263,2.82390219,3718.2,3718.0,4.36]
[1753447024497,0.1344,3718.2,3718.0,4.36]
[1753447024697,3.1344,3718.4,3718.1,0.4704]
[1753447024902,0.1344,3718.4,3718.2,2.68946272]
[1753447025082,0.94919286,3718.5,3718.1,3.48688032]
[1753447025284,0.94919286,3718.5,3718.3,0.4704]
[1753447025498,0.94919286,3718.5,3718.4,7.04832874]
[1753447025698,0.94919286,3718.5,3718.4,7.98612874]
[1753447025997,0.94919286,3718.5,3718.4,4.9638]
[1753447026299,0.94919286,3718.5,3718.4,4.4934]
[1753447026519,0.94919286,3718.5,3718.4,7.18272874]
[1753447026802,0.94919286,3718.5,3718.4,7.67012874]
[1753447026973,0.94919286,3718.5,3718.4,8.12192874]
[1753447028407,0.94919286,3718.5,3718.4,3.76292874]
[1753447028710,0.94919286,3718.5,3718.4,4.4924]
[1753447028907,0.94919286,3718.5,3718.4,0.1344]
[1753447029404,0.94919286,3718.5,3718.4,4.9788]
[1753447029793,0.94919286,3718.5,3718.4,4.4914]
[1753447030612,0.94919286,3718.5,3718.1,0.1344]
[1753447030908,3.63844928,3718.5,3718.4,4.357]
[1753447031309,1.39879286,3718.5,3718.4,4.357]
[1753447031492,2.68937961,3718.4,3718.1,0.1344]
[1753447031807,2.68937961,3718.4,3717.2,0.55]
[1753447031808,0.1344,3718.2,3717.3,0.1344]
[1753447032008,0.1344,3717.9,3717.3,0.1344]
[1753447032201,0.1344,3717.9,3717.1,0.7951]
[1753447032202,0.1344,3717.6,3717.4,4.356]
[1753447033186,3.0,3718.1,3717.4,4.356]
[1753447033515,2.82409646,3717.9,3717.4,4.4904]
[1753447033812,3.27369646,3717.9,3717.4,4.4904]
[1753447034036,0.584,3717.9,3717.4,7.1804462]
[1753447034218,3.1344,3717.9,3717.4,4.9778]
[1753447034514,0.584,3717.9,3717.4,4.4904]
[1753447034812,3.27371444,3717.9,3717.4,4.4904]
[1753447035012,0.584,3717.9,3717.4,4.4904]
[1753447035213,2.68976276,3717.8,3717.4,4.4904]
[1753447035735,0.584,3717.9,3717.4,4.4904]
[1753447035736,3.27371738,3717.9,3717.4,4.9778]
[1753447036238,3.27370841,3717.9,3717.4,4.9778]
[1753447036434,0.584,3717.9,3717.4,4.9778]
[1753447036643,0.1344,3717.9,3717.4,4.9778]
[1753447036934,2.82409527,3717.9,3717.5,0.4874]
[1753447037242,3.1344,3717.9,3717.5,0.4874]
[1753447037637,1.2734,3718.3,3717.6,0.4874]
[1753447037835,0.1344,3718.0,3717.6,3.1772977]
[1753447038133,2.68952218,3718.2,3717.7,0.9392]
[1753447038134,3.0,3718.2,3717.7,0.9392]
[1753447038336,3.1344,3718.3,3717.8,4.9768]
[1753447038510,3.0,3718.0,3717.8,4.9768]
[1753447038843,3.0,3718.1,3717.8,4.9768]
[1753447039035,3.4496,3718.0,3717.5,0.7916]
[1753447039206,3.4496,3718.0,3717.6,4.355]